[Event "Uralsk-ch Women 2019"]
[Site "Khanty-Mansiysk"]
[Date "2019.03.20"]
[Round "9.2"]
[White "Filippova, Darya"]
[Black "Vinokur, Yuliya"]
[Result "1-0"]
[ECO "D34"]
[WhiteElo "2099"]
[BlackElo "2076"]
[Annotator "NA RC"]
[PlyCount "95"]
[EventDate "2019.03.12"]
[EventType "swiss"]
[EventCountry "RUS"]
[SourceTitle "playchess.com"]
[Source "ChessBase"]
[SourceQuality "1"]
[TimeControl "5400+30"]

{[%evp 8,94,35,48,37,25,20,14,35,29,20,29,35,29,29,-2,25,20,31,20,77,63,79,77,101,97,95,75,131,85,160,154,160,132,121,131,138,133,155,132,247,160,158,155,152,137,138,144,149,135,143,142,153,143,143,155,152,135,422,451,404,437,391,416,422,468,516,563,522,527,675,659,866,554,660,682,695,451,504,617,726,585,666,741,773,700,2963,29988,29988]} 1. d4 {[%emt 0:00:00]} d5 {[%emt 0:00:10]} 2. c4 {[%emt 0:00:00]} e6 {[%emt 0:00:16]} 3. Nc3 {[%emt 0:00:23]} c5 {[%emt 0:00:19]} 4. cxd5 {[%emt 0:00:22]} exd5 {[%emt 0:00:07]} 5. Nf3 {[%emt 0:00:19]} Nc6 {[%emt 0:00:29]} 6. g3 {[%emt 0:00:32]} Nf6 {[%emt 0:00:31]} 7. Bg2 {[%emt 0:00:14]} Be7 {[%emt 0:00:40]} 8. O-O {[%emt 0:00:28]} O-O {[%emt 0:00:10]} 9. b3 {[%emt 0:01:01] LiveBook: 471 Games} Re8 {[%emt 0:06:22]} 10. Bb2 {[%emt 0:00:47]} Bg4 {[%emt 0:02:26]} 11. Na4 {[%emt 0:16:41] D30: Queen's Gambit Declined: Systems without Nc3} (11. Rc1 Bxf3 12. Bxf3 cxd4 13. Nb5 Qa5 14. Nxd4 Qxa2 15. Bc3 Qa6 16. Nf5 Rad8 17. Nxe7+ Rxe7 18. Bxf6 gxf6 19. Bxd5 Qxe2 20. Qxe2 Rxe2 21. Bxc6 bxc6 22. Rxc6 {½-½ (22) Adhiban,B (2671)-Ghaem Maghami,E (2537) Hamedan 2018}) 11... Ne4 $146 {[%emt 0:08:14]} ({Predecessor:} 11... cxd4 12. Nxd4 Qd7 13. Re1 Bh3 14. Nxc6 bxc6 15. Bf3 h5 16. Qd4 Rab8 17. Nc5 Qf5 18. Rac1 Rb5 {1-0 (70) Holemar,D (2335)-Pisk,P (2322) Marianske Lazne 2004}) 12. Rc1 {[%emt 0:04:18]} cxd4 {[%emt 0:13:29]} 13. Nxd4 {[%emt 0:01:35]} Bd7 {[%emt 0:00:09]} 14. Nc3 {[%emt 0:06:50]} Bg5 {[%emt 0:09:21]} 15. e3 {[%emt 0:04:54]} ({And not} 15. Nxd5 Bxc1 16. Bxc1 Qa5 $17) 15... Nxc3 {[%emt 0:09:48]} 16. Bxc3 {[%emt 0:00:40]} Be6 {[%emt 0:00:04]} 17. Qd2 {[%emt 0:09:33]} Qd7 {[%emt 0:01:33]} 18. Qb2 {[%emt 0:03:22]} Ne7 {[%emt 0:07:02]} ({Black should try} 18... Bh6) 19. Nxe6 {[%emt 0:03:06]} Qxe6 {[%emt 0:00:28]} 20. Rfd1 {[%emt 0:01:00]} Rad8 {[%emt 0:01:45]} 21. Rd3 {[%emt 0:02:14]} Rd7 {[%emt 0:05:09]} 22. Rcd1 {[%emt 0:00:28]} ({But not} 22. Bxg7 $6 Qg6 $14) 22... Red8 {[%emt 0:00:28]} 23. b4 {[%emt 0:05:10]} Nc8 {[%emt 0:05:04]} (23... Bf6 $16) 24. h4 {[%emt 0:02:56]} Bf6 {[%emt 0:05:44]} 25. Bxf6 {[%emt 0:00:46]} gxf6 {[%emt 0:00:05]} 26. Kh2 {[%emt 0:03:06]} Rd6 {[%emt 0:04:27]} 27. Rd4 {[%emt 0:04:02]} Ne7 {[%emt 0:02:00]} 28. Qd2 {[%emt 0:02:40]} f5 {[%emt 0:02:54]} 29. b5 {[%emt 0:02:24]} Qe5 {[%emt 0:02:11]} 30. a4 {[%emt 0:01:16]} Kf8 {[%emt 0:02:12]} 31. Qb4 {[%emt 0:02:07]} Kg8 {[%emt 0:01:58]} 32. Qc3 {[%emt 0:00:57]} Ng6 $2 {[%emt 0:01:06]} (32... Kg7 $16 {was necessary.} 33. Bf3 Qf6) 33. h5 {[%emt 0:01:08]} f4 {[%emt 0:02:36]} 34. hxg6 {[%emt 0:03:00]} fxg3+ {[%emt 0:01:12]} 35. fxg3 {[%emt 0:00:27]} Rxg6 {[%emt 0:00:24]} 36. e4 {[%emt 0:00:10]} Kg7 {[%emt 0:03:28]} 37. exd5 {[%emt 0:01:31]} Rc8 {[%emt 0:00:25]} 38. Qe1 {[%emt 0:02:12]} Qg5 {[%emt 0:01:06]} 39. Rh4 {[%emt 0:00:52]} Rc2 {[%emt 0:00:56]} 40. Rh3 {[%emt 0:00:34]} Rf6 {[%emt 0:00:27]} 41. Qe4 {[%emt 0:00:39]} Rff2 {[%emt 0:00:36]} 42. Rg1 {[%emt 0:01:04]} h6 {[%emt 0:00:59]} 43. Rh4 {[%emt 0:01:04]} f5 {[%emt 0:01:08]} 44. Qe5+ {[%emt 0:00:32]} Kh7 {[%emt 0:00:21]} 45. d6 {[%emt 0:00:52]} Rce2 {[%emt 0:00:55]} 46. Qd5 {[%emt 0:00:26]} Qg7 {[%emt 0:00:46]} 47. d7 {[%emt 0:00:46]} Re3 {[%emt 0:00:46]} 48. Rh3 {[%emt 0:00:17]} 1-0

[Event "Uralsk-ch Women 2019"]
[Site "Khanty-Mansiysk"]
[Date "2019.03.20"]
[Round "9.3"]
[White "Kabanova, Ekaterina"]
[Black "Alekseenko, Mariya"]
[Result "1/2-1/2"]
[ECO "A46"]
[WhiteElo "2086"]
[BlackElo "1848"]
[Annotator "NA RC"]
[PlyCount "114"]
[EventDate "2019.03.12"]
[EventType "swiss"]
[EventCountry "RUS"]
[SourceTitle "playchess.com"]
[Source "ChessBase"]
[SourceQuality "1"]
[TimeControl "5400+30"]

{[%evp 8,113,0,-11,-3,-6,18,-32,-11,-8,-4,-9,42,34,25,16,43,9,14,10,72,62,77,70,78,65,64,44,50,-156,-161,-192,-124,-162,-41,-64,-48,-72,-67,-46,-47,-58,-59,-122,-91,-133,-2,-172,0,0,0,-4,40,64,40,48,155,12,20,12,14,0,0,-155,-153,-781,-6115,-871,-169,-1614,-29958,-6432,-29972,-12383,-29975,-29985,-29986,-29986,-571,-29987,-11499,-5181,-627,-5181,-29979,-29994,-29994,-29995,-29991,-29991,-29992,-29995,-677,-29996,-29997,-29997,-672,-29985,-29974,-1431,-29980,-29982,32767,0,0,0,0,0]} 1. d4 {[%emt 0:00:00]} Nf6 {[%emt 0:00:00]} 2. Nf3 {[%emt 0:00:00]} e6 {[%emt 0:00:24]} 3. Nc3 {[%emt 0:01:53]} d5 {[%emt 0:03:16]} 4. e3 {[%emt 0:06:55]} b6 {[%emt 0:04:45]} (4... Be7 5. Bd3 c5 6. O-O O-O 7. b3 Nc6 8. a3 Qc7 9. Bb2 a6 10. Qe2 e5 11. dxe5 Nxe5 12. Nxd5 Nxf3+ 13. Qxf3 Nxd5 14. Qxd5 {1-0 (26) Biljanic,L (2275)-Yudkevich,M (1994) Belgrade 2019}) 5. Bb5+ {[%emt 0:00:53]} c6 {[%emt 0:00:18]} 6. Bd3 {[%emt 0:00:14] D00: 1 d4 d5: Unusual lines} Qc7 $146 {[%emt 0:17:19]} ({Predecessor:} 6... Bd6 7. e4 Nbd7 8. e5 Be7 9. exf6 Bxf6 10. O-O {1-0 (20) Philippy,M (356)-Rellias,P (683) IECG email 2004}) 7. Ne5 {[%emt 0:02:29]} Nbd7 {[%emt 0:02:27]} 8. f4 {[%emt 0:01:03]} Be7 {[%emt 0:08:01]} 9. O-O {[%emt 0:01:29]} h5 {[%emt 0:06:30]} 10. Qf3 {[%emt 0:01:41]} Bb7 {[%emt 0:06:06]} 11. Qg3 {[%emt 0:02:39]} Ng4 {[%emt 0:04:26]} 12. h3 {[%emt 0:08:00]} (12. a4 $14) 12... Nh6 $1 {[%emt 0:03:24]} 13. a4 {[%emt 0:10:33]} O-O-O {[%emt 0:05:48]} (13... h4 $11 {keeps the balance.} 14. Qf3 Nf5) 14. a5 {[%emt 0:02:30]} Nxe5 {[%emt 0:06:39]} 15. fxe5 {[%emt 0:00:38]} g5 {[%emt 0:00:57]} 16. axb6 {[%emt 0:00:31]} axb6 {[%emt 0:00:06]} 17. e4 {[%emt 0:02:13]} dxe4 {[%emt 0:05:45]} 18. Bxe4 $2 {[%emt 0:02:19]} (18. Nxe4 $14 {was the only good move.} Nf5 19. Qh2) 18... f5 {[%emt 0:00:49]} 19. Bd3 {[%emt 0:00:01]} f4 {[%emt 0:03:42]} 20. Qf3 {[%emt 0:02:59]} (20. Qf2 $17) 20... Nf5 {[%emt 0:00:49]} (20... Rxd4 $19 21. Qxh5 Qxe5) 21. Bxf5 $1 {[%emt 0:07:56]} exf5 {[%emt 0:00:14]} 22. Ne2 {[%emt 0:03:11]} c5 {[%emt 0:03:03]} 23. Ra8+ $1 {[%emt 0:03:08]} Kd7 $1 {[%emt 0:03:24]} 24. Rxd8+ {[%emt 0:01:03]} Kxd8 {[%emt 0:00:14]} 25. Qf2 {[%emt 0:06:00]} (25. d5 $15 Qxe5 26. c4) 25... Kc8 {[%emt 0:02:13]} 26. c3 {[%emt 0:00:41]} Rd8 {[%emt 0:01:31]} ({Black should try} 26... Rg8 $17 27. Bd2 Kb8) 27. Bd2 {[%emt 0:01:03]} (27. h4 $1 $15) 27... Kb8 $2 {[%emt 0:01:00]} ({Black should try} 27... h4 $17 28. b4 cxb4 29. cxb4 Kb8) 28. h4 $1 {[%emt 0:01:14]} f3 {[%emt 0:01:46]} 29. gxf3 {[%emt 0:00:24]} gxh4 {[%emt 0:02:54]} 30. Bf4 {[%emt 0:01:57]} Qc6 {[%emt 0:00:52]} 31. Kh2 {[%emt 0:00:43]} Rg8 {[%emt 0:00:28]} (31... Ba6 $14) 32. Rg1 {[%emt 0:00:46]} (32. c4 $16) 32... Rxg1 {[%emt 0:00:46]} 33. Nxg1 {[%emt 0:00:22]} cxd4 {[%emt 0:00:54]} 34. cxd4 {[%emt 0:01:49]} Qd5 {[%emt 0:00:10]} 35. Qc2 $2 {[%emt 0:03:41]} (35. Be3 $11) 35... Qxd4 {[%emt 0:00:32]} 36. Qxf5 $2 {[%emt 0:01:37]} (36. Qd2 $17 Bc5 37. Qxd4 Bxd4 38. b4) 36... Qf2+ {[%emt 0:05:33]} 37. Kh1 {[%emt 0:00:14]} Bxf3+ {[%emt 0:00:39]} 38. Nxf3 {[%emt 0:00:05]} Qxf3+ {[%emt 0:00:03]} 39. Kh2 {[%emt 0:00:50] [#]} h3 $1 {[%emt 0:00:29]} 40. e6+ {[%emt 0:01:40]} Kb7 {[%emt 0:00:20]} 41. Qc2 {[%emt 0:03:16]} Qxf4+ {[%emt 0:00:07]} 42. Kxh3 {[%emt 0:00:04]} Qg4+ {[%emt 0:00:59] Double Attack} 43. Kh2 {[%emt 0:00:02]} Qxe6 {[%emt 0:00:20]} (43... Bd6+ $142 44. Kh1 Qh3+ 45. Kg1 Bc5+ 46. Qxc5 bxc5 47. e7 Qe3+ 48. Kg2 Qxe7 49. Kf3 Qf6+ 50. Ke2 Qxb2+ 51. Ke3 Qd4+ 52. Kf3 c4 53. Ke2 c3 54. Kf3 c2 55. Kg3 c1=Q 56. Kh3 Qh1+ 57. Kg3 h4#) 44. Qg2+ {[%emt 0:00:51]} Ka7 {[%emt 0:00:30]} 45. Qg7 {[%emt 0:00:04]} Ka6 {[%emt 0:00:12]} 46. Qh8 {[%emt 0:00:21]} Bd6+ {[%emt 0:00:11]} 47. Kg2 {[%emt 0:00:02]} Qe4+ {[%emt 0:00:30]} 48. Kf2 {[%emt 0:00:33]} Bc5+ {[%emt 0:00:37]} 49. Kg3 {[%emt 0:00:23]} Qg4+ {[%emt 0:00:20]} 50. Kh2 {[%emt 0:00:05]} Bd6+ {[%emt 0:01:39]} 51. Kh1 {[%emt 0:00:03]} Qf3+ {[%emt 0:00:42]} (51... Qh3+ $142 52. Kg1 Bc5+ 53. Qd4 Bxd4#) 52. Kg1 {[%emt 0:00:02]} Bg3 {[%emt 0:00:31]} 53. Qc8+ {[%emt 0:00:18]} Ka5 {[%emt 0:00:11]} 54. b4+ {[%emt 0:00:23]} Kxb4 {[%emt 0:00:11]} 55. Qc4+ {[%emt 0:00:31]} Ka3 {[%emt 0:00:37]} 56. Qb4+ {[%emt 0:00:23]} Ka2 $11 {[%emt 0:00:14]} 57. Qb2+ {[%emt 0:00:09]} Kxb2 {[%emt 0:00:05]} 1/2-1/2